bitfinex/quotes_ETHUSD_20250220
["timestamp","ask_amount","ask_price","bid_price","bid_amount"]
[1740027622659,3.64328,2744.8,2744.5,0.3826]
[1740027623668,3.64339,2744.7,2744.2,0.9326]
[1740027623827,3.64352,2744.6,2744.3,0.261]
[1740027624033,3.64373,2744.5,2744.2,0.261]
[1740027625076,3.50112098,2744.7,2744.2,0.261]
[1740027625231,3.64391,2744.3,2744.2,0.261]
[1740027628774,3.59391,2744.3,2744.2,0.261]
[1740027631630,3.64412,2744.2,2744.0,0.3826]
[1740027632252,3.64412,2744.2,2743.8,1.1936]
[1740027634473,3.64419,2744.1,2743.8,1.1936]
[1740027634877,3.64419,2744.1,2743.8,0.6436]
[1740027635170,3.64469,2743.8,2743.4,0.3826]
[1740027635336,3.64469,2743.8,2743.5,0.261]
[1740027635536,3.64466,2743.8,2743.5,0.261]
[1740027635736,3.6449,2743.6,2743.4,0.6436]
[1740027635933,3.64466,2743.8,2743.3,3.6134624]
[1740027635934,0.7895,2743.9,2743.3,3.6134624]
[1740027636138,3.64511,2743.4,2743.3,3.6134624]
[1740027638146,3.64498,2743.5,2743.3,3.6134624]
[1740027638586,3.64511,2743.4,2743.3,3.6134624]
[1740027642894,0.27638107,2743.7,2743.3,3.6134624]
[1740027643049,3.64484,2743.6,2743.3,3.6134624]
[1740027643391,3.64497,2743.5,2743.3,3.6134624]
[1740027643561,3.64484,2743.6,2743.3,3.6134624]
[1740027643761,3.64511,2743.4,2743.3,3.6134624]
[1740027665102,4.455171,2743.4,2743.3,3.6134624]
[1740027665444,3.64577,2742.9,2742.8,0.261]
[1740027665600,3.6459,2742.8,2742.4,0.261]
[1740027665801,3.64604,2742.7,2742.3,0.3826]
[1740027666100,7.15854098,2742.6,2742.0,0.3826]
[1740027666422,3.64684,2742.1,2741.8,8.5756]
[1740027666757,3.64705,2742.0,2741.8,8.5756]
[1740027667042,3.6471,2741.9,2741.8,9.80207676]
[1740027667261,3.6471,2741.9,2741.8,8.454]
[1740027667912,3.64684,2742.1,2741.8,8.454]
[1740027668117,3.64705,2742.0,2741.8,8.454]
[1740027668536,3.64705,2742.0,2741.8,8.193]
[1740027668933,3.64684,2742.1,2741.8,8.193]
[1740027669247,3.64698,2742.0,2741.8,8.193]
[1740027669605,7.2938,2742.1,2741.8,8.193]
[1740027669805,7.29377,2742.1,2741.8,8.193]
[1740027670040,3.64699,2742.0,2741.8,8.193]
[1740027670900,7.29376,2742.1,2741.8,8.193]
[1740027671238,3.64684,2742.1,2741.8,8.193]
[1740027671603,3.64697,2742.0,2741.8,8.193]
[1740027673661,3.64684,2742.1,2741.8,8.193]
[1740027674063,7.29376,2742.1,2741.8,8.193]
[1740027674223,7.29379,2742.1,2741.8,8.193]
[1740027675736,3.64684,2742.1,2741.8,8.193]
[1740027675937,3.64697,2742.0,2741.8,8.193]
[1740027676757,7.29378,2742.1,2741.8,8.193]
[1740027677556,3.64684,2742.1,2741.8,8.193]
[1740027677873,7.29376,2742.1,2741.8,8.193]
[1740027678520,3.64684,2742.1,2741.9,0.3826]
[1740027679768,3.64697,2742.0,2741.9,0.3826]
[1740027679964,3.64697,2742.0,2741.7,0.3826]
[1740027680760,3.64684,2742.1,2741.7,0.3826]
[1740027680963,3.64699,2742.0,2741.7,0.3826]
[1740027684174,3.64699,2742.0,2741.6,0.261]
[1740027684468,3.64699,2742.0,2741.6,0.70917464]
[1740027685177,8.08135,2742.1,2741.6,0.70917464]
[1740027685372,4.43444,2742.1,2741.6,0.70917464]
[1740027685673,8.08138,2742.1,2741.6,0.70917464]
[1740027686273,6.1453,2742.4,2741.8,0.55]
[1740027686449,3.64671,2742.2,2741.8,0.55]
[1740027687598,0.7634,2742.1,2741.7,0.55]
[1740027690184,4.41029,2742.1,2741.7,0.55]
[1740027690387,0.7634,2742.1,2741.7,0.55]
[1740027690603,0.7634,2742.1,2741.7,1.034109]
[1740027694546,4.41026,2742.1,2741.7,1.034109]
[1740027695648,4.41026,2742.1,2741.8,0.27344363]
[1740027697118,4.41026,2742.1,2741.9,0.27344363]
[1740027698643,4.41026,2742.1,2741.7,1.034109]
[1740027699050,3.64704,2742.0,2741.5,0.3826]
[1740027699252,3.64704,2742.0,2741.6,0.261]
[1740027699610,3.64704,2742.0,2741.6,0.53489582]
[1740027700714,5.39,2742.4,2741.9,3.64707]
[1740027700920,5.39,2742.4,2742.1,0.3826]
[1740027701144,5.39,2742.4,2742.3,3.64657]
[1740027701317,5.39,2742.4,2742.1,4.02933]
[1740027701718,9.03652,2742.4,2742.1,0.3826]
[1740027701937,3.64677,2742.2,2741.8,0.3826]
[1740027702136,3.64677,2742.2,2741.7,0.82389582]
[1740027702137,3.64705,2742.0,2741.7,0.27389582]
[1740027702445,3.64705,2742.0,2741.6,0.3826]
[1740027705230,4.41813,2742.1,2741.6,0.3826]
[1740027705615,3.64697,2742.0,2741.6,0.3826]
[1740027706546,3.64711,2741.9,2741.4,0.57304613]
[1740027706745,3.64711,2741.9,2741.5,0.261]
[1740027710085,0.7754,2741.8,2741.3,0.261]
[1740027710379,0.7754,2741.8,2741.2,0.72364032]
[1740027710579,3.64776,2741.5,2741.2,0.5332397]
[1740027711778,3.64758,2741.6,2741.2,0.5332397]
[1740027713268,3.64764,2741.5,2741.2,0.5332397]
[1740027716299,3.64752,2741.6,2741.2,0.5332397]
[1740027716644,3.64752,2741.6,2741.2,1.86359051]
[1740027717293,3.64766,2741.5,2741.2,1.86359051]
[1740027717819,6.1654,2741.8,2741.2,1.86359051]
[1740027718019,3.64755,2741.6,2741.2,1.86359051]
[1740027719623,6.1654,2741.8,2741.2,2.49586656]
[1740027719831,3.64743,2741.7,2741.2,1.86359051]
[1740027720384,3.64754,2741.6,2741.2,0.5332397]
[1740027720585,3.64763,2741.5,2741.2,0.1506397]
[1740027720829,6.1654,2741.8,2741.2,0.1506397]
[1740027721134,7.27967808,2741.8,2741.2,0.1506397]
[1740027721498,3.64784,2741.4,2741.2,0.1506397]
[1740027722589,3.64777,2741.4,2741.2,0.1506397]
[1740027723312,3.6479,2741.3,2741.2,0.1506397]
[1740027724831,4.4462,2741.3,2741.2,0.1506397]
[1740027725123,5.255598,2741.3,2741.2,0.1506397]
[1740027726828,13.645598,2741.3,2741.2,0.1506397]
[1740027745380,12.847298,2741.3,2741.2,0.1506397]
[1740027750289,13.614398,2741.3,2741.2,0.1506397]
[1740027756702,14.94607005,2741.3,2741.2,0.1506397]
[1740027763939,13.614398,2741.3,2741.2,0.1506397]
[1740027764097,12.805,2741.3,2741.2,0.1506397]
[1740027764303,12.0379,2741.3,2741.2,0.1506397]
[1740027766047,8.39,2741.3,2741.2,0.1506397]
[1740027766554,3.64703,2742.0,2741.3,0.3826]
[1740027766714,3.64703,2742.0,2741.4,0.3826]
[1740027766911,3.64717,2741.9,2741.4,0.3826]
[1740027767952,3.64725,2741.8,2741.4,0.3826]
[1740027768256,3.0,2741.9,2741.4,0.3826]
[1740027768455,3.0,2741.9,2741.5,0.56296932]
[1740027768654,6.64712,2741.9,2741.6,0.3826]
[1740027769946,3.64726,2741.8,2741.6,0.3826]
[1740027772030,3.64726,2741.8,2741.2,4.6095897]
[1740027772031,5.39,2742.2,2741.9,0.3826]
[1740027772220,5.39,2742.5,2742.0,3.90788]
[1740027772421,5.39,2742.5,2742.1,0.3826]
[1740027772921,3.0,2742.4,2742.1,0.3826]
[1740027773336,10.29302,2742.4,2742.1,0.3826]
[1740027773942,3.6467,2742.2,2742.1,0.3826]
[1740027774137,10.29299,2742.4,2742.1,0.3826]
[1740027774356,3.64662,2742.3,2742.1,0.3826]
[1740027776068,3.0,2742.4,2742.1,0.3826]
[1740027776631,3.0,2742.4,2742.1,0.811657]
[1740027777034,3.0,2742.4,2742.1,0.3826]
[1740027777769,6.64644,2742.4,2742.1,0.3826]
[1740027778147,3.64623,2742.6,2742.1,0.3826]
[1740027778739,3.64631,2742.5,2742.1,0.3826]
[1740027778943,7.29271,2742.5,2742.1,0.3826]
[1740027779142,3.64631,2742.5,2742.1,0.3826]
[1740027779344,3.64644,2742.4,2742.1,0.3826]
[1740027780781,6.64624,2742.6,2742.1,0.3826]
[1740027780949,10.29249,2742.6,2742.1,0.3826]
[1740027781148,10.29249,2742.6,2742.1,1.176359]
[1740027781352,10.29253,2742.6,2742.1,1.176359]
[1740027781534,3.6463,2742.5,2742.1,1.176359]
[1740027782281,6.64611,2742.7,2742.1,4.823179]
[1740027782479,10.29226,2742.7,2742.1,1.176359]
[1740027782682,6.64611,2742.7,2742.1,1.176359]
[1740027783150,3.64624,2742.6,2742.1,1.176359]
[1740027783352,3.64632,2742.5,2742.2,0.5084319]
[1740027783548,10.29226,2742.7,2742.3,0.3826]
[1740027783753,6.64611,2742.7,2742.3,0.3826]
[1740027784149,3.64619,2742.6,2742.3,0.3826]
[1740027784373,3.64619,2742.6,2742.3,0.83638119]
[1740027786258,3.64619,2742.6,2742.3,0.53478119]
[1740027786696,6.64611,2742.7,2742.3,0.53478119]
[1740027786997,3.64551,2743.1,2742.4,3.64637]
[1740027787189,3.64558,2743.1,2742.4,3.64637]
[1740027787390,6.64566,2743.0,2742.4,3.64637]
[1740027787698,3.0,2743.0,2742.4,7.29269]
[1740027788496,6.64564,2743.0,2742.4,7.29269]
[1740027788692,6.64564,2743.0,2742.5,3.64629]
[1740027789003,3.64465,2743.8,2742.9,2.74423291]
[1740027789171,3.91807023,2743.9,2743.3,0.081]
[1740027789371,0.7603,2743.7,2743.3,0.081]
[1740027789782,4.40505,2743.7,2743.3,0.081]
[1740027790167,3.64484,2743.6,2743.3,0.081]
[1740027793235,0.8072,2744.1,2743.3,0.081]
[1740027793441,3.64435,2744.0,2743.5,0.081]
[1740027793615,9.03407,2744.2,2743.5,0.081]
[1740027793616,3.64429,2744.1,2743.5,0.081]
[1740027793815,9.03409,2744.2,2743.5,0.081]
[1740027793816,3.64438,2744.0,2743.5,0.081]
[1740027794015,7.28878,2744.0,2743.5,0.081]
[1740027794315,3.64449,2743.9,2743.5,0.081]
[1740027794519,3.64438,2744.0,2743.5,0.081]
[1740027794721,3.64456,2743.9,2743.5,0.081]
[1740027795341,3.64438,2744.0,2743.5,0.081]
[1740027795716,3.64479,2743.7,2743.5,0.081]
[1740027796679,3.64477,2743.7,2743.5,0.081]
[1740027797369,7.28956,2743.7,2743.5,0.081]
[1740027797572,3.64477,2743.7,2743.5,0.081]
[1740027798477,7.28958,2743.7,2743.5,0.081]
[1740027798975,3.64477,2743.7,2743.5,0.081]
[1740027800255,5.39,2744.3,2743.6,0.081]
[1740027800455,5.39,2744.3,2744.1,3.72515]
[1740027800686,0.7896,2744.5,2744.1,0.081]
[1740027800890,3.7896,2744.5,2744.1,0.081]
[1740027801393,0.7896,2744.5,2744.1,0.081]
[1740027801571,3.64404,2744.2,2744.1,0.081]
[1740027802858,0.7896,2744.5,2743.6,0.081]
[1740027802859,3.64433,2744.0,2743.6,0.081]
[1740027803186,3.64433,2744.0,2743.9,0.263]
[1740027803377,3.64413,2744.2,2743.9,0.263]
[1740027806484,6.64365,2744.6,2744.0,0.081]
[1740027806684,6.6436,2744.6,2744.0,0.081]
[1740027807497,3.64365,2744.5,2744.0,0.844278]
[1740027808201,6.64354,2744.6,2744.0,4.488548]
[1740027809373,4.43053,2744.9,2744.2,0.081]
[1740027809573,3.64311,2744.9,2744.2,3.72498]
[1740027809903,3.64335,2744.8,2744.2,4.461884]
[1740027810052,6.6006655,2745.5,2744.6,0.081]
[1740027810263,6.1529,2745.5,2744.6,0.081]
[1740027810560,3.64299,2745.0,2744.6,0.081]
[1740027811449,0.27333753,2745.7,2744.8,0.081]
[1740027811686,3.6422,2745.6,2744.9,0.55]
[1740027811861,3.0,2745.5,2745.0,0.081]
[1740027812061,3.0,2745.5,2745.0,0.872716]
[1740027812462,0.8161,2745.9,2745.0,0.872716]
[1740027812670,4.39309,2746.2,2745.4,3.64236]
[1740027812855,3.64167,2746.0,2745.5,0.264]
[1740027813050,3.64167,2746.0,2745.5,0.662736]
[1740027813858,7.28344,2746.0,2745.5,0.662736]
[1740027814060,4.39313,2746.2,2745.5,0.662736]
[1740027814259,3.64121,2746.4,2745.7,3.64203]
[1740027814481,3.64121,2746.4,2745.6,4.27308]
[1740027814708,0.8305,2746.5,2745.6,4.27308]
[1740027814709,4.4716,2746.5,2745.6,4.27308]
[1740027814868,3.8305,2746.5,2745.6,4.27308]
[1740027815072,3.64129,2746.3,2745.7,0.453708]
[1740027815341,0.8305,2746.5,2745.7,4.095758]
[1740027815342,3.641,2746.5,2745.7,4.095758]
[1740027815539,3.64126,2746.3,2745.8,0.081]
[1740027816460,3.64126,2746.4,2745.8,0.081]
[1740027816641,3.64143,2746.2,2745.8,0.081]
[1740027816947,3.64153,2746.1,2745.8,0.081]
[1740027817143,3.64175,2746.0,2745.8,0.081]
[1740027817449,3.64179,2745.9,2745.8,0.081]
[1740027817648,3.64209,2745.7,2745.5,0.081]
[1740027818546,3.64232,2745.5,2745.4,0.264]
[1740027818748,3.64245,2745.4,2745.2,0.264]
[1740027818922,3.64258,2745.3,2745.2,0.264]
[1740027819432,3.64314,2744.9,2744.7,8.535]
[1740027819839,3.64314,2744.9,2744.7,8.271]
[1740027821114,3.64325,2744.8,2744.7,8.271]
[1740027821530,3.64325,2744.8,2744.7,8.19]
[1740027822017,3.64271,2745.3,2744.7,6.2145]
[1740027822218,3.64273,2745.2,2744.7,6.2145]
[1740027822519,3.64296,2745.1,2744.7,6.2145]
[1740027822732,3.64296,2745.1,2744.7,5.361]
[1740027823137,7.28589,2745.1,2744.7,5.361]
[1740027823369,3.64293,2745.1,2744.7,5.361]
[1740027823655,3.64299,2745.0,2744.7,5.361]
[1740027824434,3.6432,2744.9,2744.7,5.361]
[1740027825255,3.64325,2744.8,2744.7,5.361]
[1740027825838,3.64351,2744.6,2744.5,0.345]
[1740027826041,3.64351,2744.6,2744.5,0.264]
[1740027826248,3.64369,2744.5,2744.2,0.081]
[1740027826425,3.64369,2744.5,2744.2,0.345]
[1740027827973,3.6438,2744.4,2744.2,0.081]
[1740027829380,3.64391,2744.3,2744.2,0.081]
[1740027830725,3.64379,2744.4,2744.1,0.264]
[1740027830876,3.64404,2744.2,2743.9,0.081]
[1740027831081,3.64431,2744.0,2743.9,0.081]
[1740027831620,3.64431,2744.0,2743.7,0.081]
[1740027831770,3.64419,2744.1,2743.7,0.081]
[1740027831771,3.64419,2744.1,2743.7,0.9079]
[1740027831969,3.64442,2744.0,2743.7,0.9079]
[1740027832174,3.64446,2743.9,2743.7,0.9079]
[1740027833523,3.64419,2744.1,2743.7,0.9079]
[1740027833733,3.64447,2743.9,2743.7,0.9079]
[1740027837234,3.64351,2744.6,2744.1,0.631]
[1740027837384,5.39,2744.7,2744.1,0.631]
[1740027837584,12.67696,2744.7,2744.1,0.631]
[1740027837967,9.03346,2744.7,2744.1,0.631]
[1740027838116,9.03346,2744.7,2744.1,1.33294629]
[1740027838321,3.64367,2744.5,2744.1,1.33294629]
[1740027838501,5.39,2744.7,2744.1,1.33294629]
[1740027838835,3.64358,2744.6,2744.1,1.33294629]
[1740027839715,5.39,2744.7,2744.1,4.97712629]
[1740027839919,5.39,2744.7,2744.2,0.86213263]
[1740027840136,3.64356,2744.6,2744.2,0.86213263]
[1740027840447,3.64365,2744.5,2744.1,0.631]
[1740027840637,9.03348,2744.7,2744.1,0.631]
[1740027840841,3.64363,2744.6,2744.1,0.631]
[1740027841435,5.39,2744.7,2744.1,4.27517]
[1740027841903,9.03339,2744.7,2744.1,4.27517]
[1740027842101,9.03339,2744.7,2744.2,0.427517]
[1740027842302,3.64352,2744.6,2744.2,0.427517]
[1740027842520,12.67688,2744.7,2744.2,0.427517]
[1740027842726,3.64365,2744.5,2744.2,0.427517]
[1740027842924,0.8268,2744.9,2744.2,0.427517]
[1740027843134,3.64326,2744.8,2744.2,0.427517]
[1740027843302,3.64349,2744.7,2744.1,4.27509]
[1740027843636,3.64353,2744.6,2744.1,0.631]
[1740027843837,5.39,2745.7,2744.8,0.081]
[1740027844041,0.64276861,2745.7,2745.0,3.64289]
[1740027844210,0.64276861,2745.7,2745.2,3.64271]
[1740027844417,0.64276861,2745.7,2745.1,0.081]
[1740027844640,3.64206,2745.7,2745.1,0.081]
[1740027845154,3.64192,2745.8,2745.1,0.081]
[1740027845349,3.64245,2745.5,2745.1,0.081]
[1740027845758,3.64249,2745.4,2745.1,0.081]
[1740027846820,3.64234,2745.5,2745.1,0.081]
[1740027847020,3.64221,2745.6,2745.1,0.844202]
[1740027847343,7.28451,2745.6,2745.1,0.844202]
[1740027847844,3.64234,2745.5,2745.1,0.844202]
[1740027848653,3.64232,2745.5,2745.1,0.844202]
[1740027848860,3.6424,2745.5,2745.1,0.844202]
[1740027849723,3.6425,2745.4,2745.1,0.844202]
[1740027850249,3.6424,2745.5,2745.1,0.844202]
[1740027850760,7.2848,2745.5,2745.1,0.844202]
[1740027851657,3.6424,2745.5,2745.1,0.844202]
[1740027852455,7.28484,2745.5,2745.1,0.844202]
[1740027852756,3.6424,2745.5,2745.1,0.081]
[1740027853602,3.64219,2745.6,2745.1,3.72383]
[1740027854277,3.64198,2745.8,2745.2,4.19265]
[1740027854482,3.64201,2745.8,2745.3,0.081]
[1740027854903,3.64208,2745.7,2745.2,4.12245]
[1740027855307,3.64208,2745.7,2745.2,4.898985]
[1740027856573,3.0,2745.9,2745.2,4.898985]
[1740027856574,3.64192,2745.8,2745.3,3.64252]
[1740027857586,6.6418,2745.9,2745.2,4.898985]
[1740027857823,3.64205,2745.7,2745.2,4.898985]
[1740027858119,3.64205,2745.7,2745.3,0.4898985]
[1740027858518,7.28422,2745.7,2745.3,0.4898985]
[1740027858724,3.64219,2745.6,2745.2,1.256335]
[1740027859622,3.64219,2745.6,2745.1,3.64279]
[1740027859623,3.64239,2745.5,2745.3,0.264]
[1740027859790,3.64239,2745.5,2745.1,0.55]
[1740027859989,3.64239,2745.5,2745.2,0.264]
[1740027860600,3.64239,2745.5,2745.0,5.28]
[1740027860601,3.64219,2745.6,2745.0,5.28]
[1740027860801,3.64246,2745.4,2745.2,0.264]
[1740027861124,3.64237,2745.5,2745.2,0.264]
[1740027861428,3.64219,2745.6,2745.2,0.264]
[1740027861718,3.64234,2745.5,2745.2,0.264]
[1740027866239,3.64232,2745.5,2745.2,0.264]
[1740027870140,3.64248,2745.4,2745.2,0.264]
[1740027870637,3.64227,2745.6,2745.2,0.264]
[1740027872247,3.0,2746.1,2745.2,0.264]
[1740027872248,0.8124,2746.3,2745.8,3.64185]
[1740027872751,3.64126,2746.3,2745.6,7.28415]
[1740027874164,3.64126,2746.3,2745.6,3.64205]
[1740027874317,3.64126,2746.3,2745.7,3.64203]
[1740027874518,6.64121,2746.4,2745.6,3.64205]
[1740027874711,3.64127,2746.3,2745.7,3.64204]
[1740027875831,3.64141,2746.2,2745.7,3.64204]
[1740027876649,3.6415,2746.2,2745.6,4.33578829]
[1740027876861,3.6415,2746.2,2745.6,3.64216]
[1740027877454,3.6415,2746.2,2745.6,3.64211]
[1740027877653,3.6415,2746.2,2745.6,7.28422]
[1740027878444,3.6415,2746.2,2745.6,3.64211]
[1740027878751,3.64127,2746.3,2745.6,3.64206]
[1740027879058,3.64139,2746.2,2745.7,3.64204]
[1740027879255,3.64139,2746.2,2745.6,4.33568929]
[1740027879461,3.64153,2746.1,2745.6,4.33568929]
[1740027881159,3.64166,2746.0,2745.6,0.69362929]
[1740027883342,3.64166,2746.0,2745.6,0.55]
[1740027883849,4.4319,2746.2,2745.6,0.55]
[1740027884055,3.64154,2746.1,2745.6,4.19209]
[1740027884367,3.64154,2746.1,2745.7,0.263]
[1740027888168,4.43197,2746.2,2745.7,3.90499]
[1740027888371,3.64153,2746.1,2745.8,0.445499]
[1740027888533,7.28314,2746.1,2745.7,0.263]
[1740027888733,3.64183,2745.9,2745.3,5.28]
[1740027889043,3.64183,2745.9,2745.8,0.262]
[1740027889570,4.40083,2745.9,2745.8,0.262]
[1740027890137,5.205092,2745.9,2745.1,9.47275]
[1740027890333,3.64228,2745.6,2745.2,0.262]
[1740027890607,7.28456,2745.6,2745.2,0.262]
[1740027890874,3.64228,2745.6,2745.2,0.262]
[1740027891362,7.28456,2745.6,2745.2,0.262]
[1740027891670,7.28459,2745.6,2745.2,0.262]
[1740027892477,3.64234,2745.5,2745.2,0.262]
[1740027896450,4.44314,2745.5,2745.2,0.262]
[1740027898983,8.08556,2745.5,2745.2,0.262]
[1740027899184,4.44314,2745.5,2745.2,0.262]
[1740027899798,0.8008,2745.5,2745.2,0.262]
[1740027899950,4.44314,2745.5,2745.2,0.262]
[1740027901593,0.8008,2745.5,2745.2,0.262]
[1740027902198,4.44315,2745.5,2745.2,0.262]
[1740027902517,0.8008,2745.5,2745.2,0.262]
[1740027906008,1.31169987,2745.5,2744.8,0.3631]
[1740027906324,7.28509,2745.4,2744.9,0.261]
[1740027906888,3.64254,2745.4,2744.9,0.261]
[1740027907294,3.64253,2745.4,2744.9,0.262]
[1740027907799,7.28506,2745.4,2744.9,0.262]
[1740027908000,3.64253,2745.4,2744.9,3.90511]
[1740027909101,3.64253,2745.4,2744.9,0.262]
[1740027909304,4.47341,2745.3,2744.7,9.11347389]
[1740027909473,3.643,2745.0,2744.8,0.261]
[1740027909674,4.4737,2745.0,2744.8,0.261]
[1740027909883,4.4737,2745.0,2744.4,3.83385383]
[1740027910117,4.4737,2745.0,2744.5,0.261]
[1740027911025,4.4737,2745.0,2744.5,3.90459]
[1740027911724,0.8307,2745.0,2744.6,3.64347]
[1740027912007,0.8307,2745.0,2744.5,0.261]
[1740027912179,0.8307,2745.0,2744.5,3.90456]
[1740027912389,4.44068,2745.2,2744.6,4.32740367]
[1740027913269,4.44068,2745.2,2744.7,3.64336]
[1740027913588,3.64285,2745.1,2744.6,4.32740367]
[1740027913794,0.7979,2745.2,2744.6,4.32740367]
[1740027913993,4.44063,2745.2,2744.6,4.32740367]
[1740027914407,3.64294,2745.1,2744.5,0.261]
[1740027914920,3.64294,2745.1,2744.5,3.90463]
[1740027915508,3.64294,2745.1,2744.6,3.64349]
[1740027917308,4.44063,2745.2,2744.6,3.64349]
[1740027918806,0.7979,2745.2,2744.6,3.64349]
[1740027919113,3.64285,2745.1,2744.6,3.64349]
[1740027921307,4.44063,2745.2,2744.6,8.33517967]
[1740027921506,4.44063,2745.2,2745.1,0.1512]
[1740027922414,0.804262,2745.9,2745.1,0.1512]
[1740027922589,9.0315,2746.2,2745.1,0.1512]
[1740027922590,0.8042,2745.8,2745.1,0.1512]
[1740027922795,0.8042,2745.8,2745.4,3.64238]
[1740027922989,0.8042,2745.8,2745.5,0.262]
[1740027923207,4.44619,2745.8,2745.5,0.262]
[1740027923515,0.8088,2745.7,2745.5,0.262]
[1740027923901,4.45086,2745.7,2745.5,0.262]
[1740027924084,3.64206,2745.7,2745.5,0.262]
[1740027924795,0.8042,2745.8,2745.5,0.262]
[1740027924996,4.44619,2745.8,2745.5,0.262]
[1740027925711,0.8042,2745.8,2745.5,0.262]
[1740027926619,3.64181,2745.9,2745.5,0.262]
[1740027927711,7.2837,2745.9,2745.5,0.262]
[1740027928181,3.64193,2745.8,2745.5,0.262]
[1740027928820,4.44964,2745.9,2745.5,0.262]
[1740027929025,8.09154,2745.9,2745.5,0.262]
[1740027929221,3.64181,2745.9,2745.5,0.262]
[1740027929524,3.64193,2745.8,2745.5,0.262]
[1740027932923,3.64192,2745.8,2745.5,0.262]
[1740027933228,3.64181,2745.9,2745.5,0.262]
[1740027934536,7.28369,2745.9,2745.5,0.262]
[1740027936217,3.64195,2745.8,2745.5,0.262]
[1740027937546,3.64181,2745.9,2745.5,0.262]
[1740027938848,0.443641,2745.9,2745.5,0.261]
[1740027939134,3.64202,2745.8,2745.5,0.261]
[1740027941332,3.64206,2745.7,2745.5,0.261]
[1740027944946,3.64194,2745.8,2745.5,0.261]
[1740027945737,3.64207,2745.7,2745.5,0.261]
[1740027946448,3.64181,2745.9,2745.5,0.261]
[1740027946813,0.7686,2746.2,2745.7,3.64199]
[1740027947039,8.39,2746.6,2745.5,0.261]
[1740027947237,3.64128,2746.3,2745.7,3.64198]
[1740027947471,0.7972,2746.5,2745.6,3.64219]
[1740027947673,0.7972,2746.5,2746.0,3.64159]
[1740027948378,5.39,2747.1,2746.4,3.64106]
[1740027948583,3.64036,2747.0,2746.5,0.261]
[1740027948953,3.64026,2747.1,2746.5,0.261]
[1740027949282,4.084106,2747.0,2746.5,0.261]
[1740027949482,3.443746,2747.0,2746.5,0.261]
[1740027949659,3.64047,2746.9,2746.5,0.261]
[1740027950552,3.64061,2746.8,2746.5,0.261]
[1740027951148,0.7868,2746.6,2746.5,0.261]
[1740027951373,3.64099,2746.5,2746.3,0.261]
[1740027951574,3.64131,2746.3,2746.2,0.261]
[1740027961090,3.64113,2746.4,2746.2,0.261]
[1740027961300,3.64126,2746.3,2746.2,0.261]
[1740027963096,3.641,2746.5,2746.2,0.261]
[1740027964163,3.64096,2746.6,2746.2,0.261]
[1740027964596,3.64096,2746.6,2746.2,0.651251]
[1740027964970,0.756,2746.8,2746.3,3.64124]
[1740027965169,3.64059,2746.8,2746.3,3.64124]
[1740027965370,7.28131,2746.8,2746.3,3.64124]
[1740027965597,3.64074,2746.7,2746.2,4.292631]
[1740027965901,3.64074,2746.7,2746.3,0.7934071]
[1740027968498,3.64061,2746.8,2746.3,0.7934071]
[1740027971206,3.64049,2746.9,2746.3,0.7934071]
[1740027971504,3.6408,2746.7,2746.3,0.7934071]
[1740027980218,7.28161,2746.7,2746.3,0.7934071]
[1740027980511,3.6408,2746.7,2746.3,0.7934071]
[1740027981611,3.64083,2746.7,2746.3,0.7934071]
[1740027981816,3.64088,2746.6,2746.3,0.7934071]
[1740027982014,3.64103,2746.5,2746.0,5.28]
[1740027982180,3.64125,2746.4,2746.1,0.261]
[1740027982381,3.64133,2746.3,2746.1,0.261]
[1740027983222,3.64139,2746.2,2746.1,0.261]
[1740027983793,3.6388413,2746.2,2746.1,0.261]
[1740027984710,1.54480913,2746.2,2745.5,0.19011073]
[1740027984914,1.32571975,2746.3,2745.1,0.1512]
[1740027984915,3.64219,2745.6,2745.1,0.1512]
[1740027985106,3.64232,2745.5,2745.1,0.4122]
[1740027986000,7.28446,2745.6,2745.1,0.4122]
[1740027986221,7.28446,2745.6,2745.2,0.405516]
[1740027986414,3.64233,2745.5,2745.2,0.405516]
[1740027986593,7.28446,2745.6,2745.2,0.405516]
[1740027986797,3.64219,2745.6,2745.2,0.405516]
[1740027987541,4.45886,2745.7,2745.2,0.405516]
[1740027987699,4.45886,2745.7,2745.2,4.048226]
[1740027987899,4.45886,2745.7,2745.3,0.4460426]
[1740027988266,3.64219,2745.6,2745.3,0.4460426]
[1740027998130,3.64219,2745.6,2745.2,4.048236]
[1740028002452,0.8168,2745.7,2745.2,4.048236]
[1740028002648,4.45887,2745.7,2745.2,4.048236]
[1740028003154,3.64207,2745.7,2745.2,4.048236]
[1740028003323,3.64207,2745.7,2745.2,4.048156]
[1740028005858,3.64214,2745.7,2745.2,4.048156]
[1740028007264,3.64214,2745.7,2745.2,4.048146]
[1740028008032,3.64201,2745.8,2745.3,3.64255]
[1740028008363,4.46069,2745.9,2745.3,3.64255]
[1740028008865,1.32682542,2745.6,2745.1,0.1512]
[1740028009031,3.64258,2745.3,2745.1,0.1512]
[1740028009364,3.64272,2745.2,2745.1,0.4122]
[1740028009755,3.64272,2745.2,2745.1,0.1512]
[1740028009953,6.71001796,2745.2,2745.1,0.1512]